fUST/lending_fUST_20260503
["ID","MTS","AMOUNT","RATE_DAILY","PERIOD"]
[421516536,1777805443000,-500.0,0.00016438,2]
[421516537,1777805443000,-500.0,0.00016438,2]
[421516516,1777805443000,-2450.11,0.00016438,2]
[421516488,1777805443000,-500.0,0.00016438,2]
[421516518,1777805443000,-500.0,0.00016438,2]
[421516487,1777805443000,-500.0,0.00016438,2]
[421516494,1777805443000,-1545.8,0.00016438,2]
[421516492,1777805443000,-500.0,0.00016438,2]
[421516498,1777805443000,-500.0,0.00016438,2]
[421516499,1777805443000,-500.0,0.00016438,2]
[421516497,1777805443000,-3909.52,0.00016438,2]
[421516500,1777805443000,-500.0,0.00016438,2]
[421516502,1777805443000,-500.0,0.00016438,2]
[421516503,1777805443000,-500.0,0.00016438,2]
[421516504,1777805443000,-500.0,0.00016438,2]
[421516501,1777805443000,-2761.05,0.00016438,2]
[421516507,1777805443000,-500.0,0.00016438,2]
[421516506,1777805443000,-500.0,0.00016438,2]
[421516491,1777805443000,-500.0,0.00016438,2]
[421516509,1777805443000,-695.5,0.00016438,2]
[421516520,1777805443000,-500.0,0.00016438,2]
[421516508,1777805443000,-1265.3,0.00016438,2]
[421516517,1777805443000,-500.0,0.00016438,2]
[421516515,1777805443000,-500.0,0.00016438,2]
[421516513,1777805443000,-402.33079102,0.00016438,2]
[421516514,1777805443000,-6415.06,0.00016438,2]
[421516519,1777805443000,-500.0,0.00016438,2]
[421516521,1777805443000,-500.0,0.00016438,2]
[421516523,1777805443000,-500.0,0.00016438,2]
[421516510,1777805443000,-500.0,0.00016438,2]
[421516522,1777805443000,-502.45,0.00016438,2]
[421516505,1777805443000,-500.0,0.00016438,2]
[421516511,1777805443000,-863.25,0.00016438,2]
[421516512,1777805443000,-500.0,0.00016438,2]
[421516601,1777805444000,-500.0,0.00016438,2]
[421516585,1777805444000,-500.0,0.00016438,2]
[421516587,1777805444000,-535.53,0.00016438,2]
[421516580,1777805444000,-500.0,0.00016438,2]
[421516583,1777805444000,-500.0,0.00016438,2]
[421516577,1777805444000,-539.61,0.00016438,2]
[421516592,1777805444000,-500.0,0.00016438,2]
[421516588,1777805444000,-500.0,0.00016438,2]
[421516589,1777805444000,-500.0,0.00016438,2]
[421516590,1777805444000,-500.0,0.00016438,2]
[421516596,1777805444000,-890.82,0.00016438,2]
[421516597,1777805444000,-500.0,0.00016438,2]
[421516594,1777805444000,-500.0,0.00016438,2]
[421516591,1777805444000,-566.85,0.00016438,2]
[421516595,1777805444000,-500.0,0.00016438,2]
[421516600,1777805444000,-1247.69,0.00016438,2]
[421516593,1777805444000,-500.0,0.00016438,2]
[421516599,1777805444000,-1600.03,0.00016438,2]
[421516613,1777805444000,-500.0,0.00016438,2]
[421516606,1777805444000,-500.0,0.00016438,2]
[421516609,1777805444000,-500.0,0.00016438,2]
[421516584,1777805444000,-6499.85,0.00016438,2]
[421516598,1777805444000,-500.0,0.00016438,2]
[421516586,1777805444000,-500.0,0.00016438,2]
[421516564,1777805444000,-500.0,0.00016438,2]
[421516582,1777805444000,-500.0,0.00016438,2]
[421516602,1777805444000,-1007.13,0.00016438,2]
[421516556,1777805444000,-500.0,0.00016438,2]
[421516562,1777805444000,-500.0,0.00016438,2]
[421516563,1777805444000,-512.62956235,0.00016438,2]
[421516557,1777805444000,-500.0,0.00016438,2]
[421516560,1777805444000,-1035.24,0.00016438,2]
[421516561,1777805444000,-500.0,0.00016438,2]
[421516558,1777805444000,-500.96599181,0.00016438,2]
[421516559,1777805444000,-500.0,0.00016438,2]
[421516565,1777805444000,-500.0,0.00016438,2]
[421516575,1777805444000,-1690.34,0.00016438,2]
[421516576,1777805444000,-500.0,0.00016438,2]
[421516566,1777805444000,-500.0,0.00016438,2]
[421516567,1777805444000,-500.0,0.00016438,2]
[421516570,1777805444000,-500.0,0.00016438,2]
[421516574,1777805444000,-978.22,0.00016438,2]
[421516572,1777805444000,-500.49041393,0.00016438,2]
[421516569,1777805444000,-500.0,0.00016438,2]
[421516568,1777805444000,-500.0,0.00016438,2]
[421516571,1777805444000,-500.0,0.00016438,2]
[421516573,1777805444000,-670.46,0.00016438,2]
[421516578,1777805444000,-500.0,0.00016438,2]
[421516579,1777805444000,-500.0,0.00016438,2]
[421516581,1777805444000,-500.0,0.00016438,2]
[421516612,1777805444000,-500.0,0.00016438,2]
[421516640,1777805444000,-500.0,0.00016438,2]
[421516604,1777805444000,-500.0,0.00016438,2]
[421516633,1777805444000,-500.0,0.00016438,2]
[421516630,1777805444000,-500.0,0.00016438,2]
[421516642,1777805444000,-500.0,0.00016438,2]
[421516641,1777805444000,-576.69,0.00016438,2]
[421516637,1777805444000,-2018.37,0.00016438,2]
[421516634,1777805444000,-187.10768389,0.00016438,2]
[421516636,1777805444000,-2441.89,0.00016438,2]
[421516645,1777805444000,-969.28,0.00016438,2]
[421516655,1777805444000,-500.0,0.00016438,2]
[421516656,1777805444000,-1301.17,0.00016438,2]
[421516631,1777805444000,-500.0,0.00016438,2]
[421516644,1777805444000,-500.0,0.00016438,2]
[421516646,1777805444000,-500.0,0.00016438,2]
[421516657,1777805444000,-18111.38,0.00016438,2]
[421516647,1777805444000,-582.73,0.00016438,2]
[421516648,1777805444000,-500.0,0.00016438,2]
[421516653,1777805444000,-3458.67,0.00016438,2]
[421516651,1777805444000,-500.0,0.00016438,2]
[421516654,1777805444000,-637.79,0.00016438,2]
[421516652,1777805444000,-500.0,0.00016438,2]
[421516649,1777805444000,-500.0,0.00016438,2]
[421516610,1777805444000,-791.79,0.00016438,2]
[421516658,1777805444000,-234.74693288,0.00016438,2]
[421516632,1777805444000,-6284.33,0.00016438,2]
[421516650,1777805444000,-500.0,0.00016438,2]
[421516639,1777805444000,-762.31,0.00016438,2]
[421516643,1777805444000,-500.0,0.00016438,2]
[421516614,1777805444000,-500.0,0.00016438,2]
[421516611,1777805444000,-5105.89,0.00016438,2]
[421516608,1777805444000,-490.39484423,0.00016438,2]
[421516605,1777805444000,-500.0,0.00016438,2]
[421516603,1777805444000,-633.46033355,0.00016438,2]
[421516615,1777805444000,-500.0,0.00016438,2]
[421516607,1777805444000,-500.0,0.00016438,2]
[421516617,1777805444000,-500.0,0.00016438,2]
[421516628,1777805444000,-500.0,0.00016438,2]
[421516629,1777805444000,-500.0,0.00016438,2]
[421516627,1777805444000,-500.0,0.00016438,2]
[421516623,1777805444000,-500.0,0.00016438,2]
[421516621,1777805444000,-500.0,0.00016438,2]
[421516624,1777805444000,-500.0,0.00016438,2]
[421516618,1777805444000,-500.0,0.00016438,2]
[421516616,1777805444000,-500.0,0.00016438,2]
[421516626,1777805444000,-500.0,0.00016438,2]
[421516622,1777805444000,-500.0,0.00016438,2]
[421516625,1777805444000,-500.0,0.00016438,2]
[421516620,1777805444000,-500.0,0.00016438,2]
[421516635,1777805444000,-928.33,0.00016438,2]
[421516638,1777805444000,-694.66,0.00016438,2]
[421516619,1777805444000,-500.0,0.00016438,2]
[421516659,1777805445000,-1000.0,0.00015357,2]
[421516671,1777805446000,-265.25306712,0.00016438,2]
[421516673,1777805446000,-500.0,0.00016438,2]
[421516670,1777805446000,-442.0,0.00015769,2]
[421516672,1777805446000,-500.0,0.00016438,2]
[421516675,1777805446000,-191.91456362,0.00016438,2]
[421516674,1777805446000,-500.0,0.00016438,2]
[421516694,1777806036000,-262.18594567,8.593e-05,2]
[421516695,1777806059000,-300.0,8.635e-05,2]
[421516696,1777806082000,-300.0,8.635e-05,2]
[421516699,1777806105000,-300.0,8.635e-05,2]
[421516700,1777806127000,-300.0,8.635e-05,2]
[421516701,1777806150000,-300.0,8.635e-05,2]
[421516702,1777806168000,-300.0,8.635e-05,2]
[421516703,1777806186000,-300.0,8.635e-05,2]
[421516733,1777806632000,-399.86526697,8.378e-05,2]
[421516760,1777806640000,-461.80408768,8.378e-05,2]
[421516773,1777806643000,-465.15139735,8.463e-05,2]
[421516774,1777806643000,-3.52553052,8.463e-05,2]
[421516772,1777806643000,-4138.33064535,8.378e-05,2]
[421516775,1777806643000,-256.94222676,8.591e-05,2]
[421516776,1777806643000,-15.3317062,0.00010591,2]
[421516779,1777806643000,-160.0,0.00013427,2]
[421516780,1777806643000,-160.0,0.00013427,2]
[421516781,1777806643000,-156.0,0.00013699,2]
[421516778,1777806643000,-349.44142839,0.00012591,2]
[421516782,1777806643000,-305.67295023,0.00013699,2]
[421516777,1777806643000,-287.86012138,0.00010591,2]
[421516870,1777806646000,-856.043685,0.00013699,2]
[421516865,1777806646000,-694.32704977,0.00013699,2]
[421516876,1777806646000,-192.81834526,0.00013699,2]
[421516872,1777806646000,-807.18165474,0.00013699,2]
[421516867,1777806646000,-2985.1976539,0.00013699,2]
[421516878,1777806646000,-300.0,0.00013972,2]
[421516881,1777806646000,-300.0,0.00013972,2]
[421516880,1777806646000,-300.0,0.00013972,2]
[421516895,1777806646000,-300.0,0.00013972,2]
[421516882,1777806646000,-300.0,0.00013972,2]
[421516888,1777806646000,-300.0,0.00013972,2]
[421516890,1777806646000,-300.0,0.00013972,2]
[421516884,1777806646000,-300.0,0.00013972,2]
[421516892,1777806646000,-300.0,0.00013972,2]
[421516899,1777806646000,-300.0,0.00013972,2]
[421516886,1777806646000,-300.0,0.00013972,2]
[421516894,1777806646000,-300.0,0.00013972,2]
[421516897,1777806646000,-300.0,0.00013972,2]
[421516905,1777806647000,-200.63836589,0.00014,2]
[421516901,1777806647000,-300.0,0.00013972,2]
[421516903,1777806647000,-300.0,0.00013972,2]
[421516917,1777806647000,-234.283397,0.00015068,2]
[421516913,1777806647000,-370.0,0.00014935,2]
[421516921,1777806647000,-200.0,0.00015297,2]
[421516909,1777806647000,-646.0,0.00014931,2]
[421516915,1777806647000,-185.0,0.00014935,2]
[421516907,1777806647000,-395.69102921,0.00014591,2]
[421516911,1777806647000,-442.0,0.00014935,2]
[421516924,1777806647000,-206.31238936,0.000156,2]
[421516929,1777806647000,-206.31238936,0.000158,2]
[421516926,1777806647000,-200.0,0.00015789,2]
[421516931,1777806647000,-3171.9526659,0.00015813,2]
[421516933,1777806647000,-664.68818474,0.000162,2]
[421516935,1777806647000,-4806.21473672,0.00016237,2]
[421516919,1777806647000,-152.0,0.00015082,7]
[421516993,1777806737000,15000.0,0.00015,120]
[421517082,1777807832000,-1685.09803634,0.00012048,2]
[421517074,1777807832000,-893.90684644,0.00011928,2]
[421517080,1777807832000,-4106.09315356,0.00011928,2]
[421517090,1777807832000,-300.0,0.00012169,2]
[421517087,1777807832000,-857.09429574,0.00012048,2]
[421517097,1777807832000,-1200.0,0.00012169,2]
[421517093,1777807832000,-300.0,0.00012169,2]
[421517095,1777807832000,-300.0,0.00012169,2]
[421517099,1777807832000,-592.0,0.0001217,2]
[421517106,1777807832000,-714.77116563,0.0001267,2]
[421517102,1777807832000,-1.92253506,0.00012481,2]
[421517104,1777807832000,-250.12029302,0.00012481,2]
[421517189,1777807839000,-500.0,0.0001421,2]
[421517216,1777807839000,-500.0,0.00016438,2]
[421517192,1777807839000,-600.0,0.00014494,2]
[421517193,1777807839000,-167.0,0.0001466,2]
[421517195,1777807839000,-3803.3103273,0.00015272,2]
[421517198,1777807839000,-720.0,0.00015943,2]
[421517196,1777807839000,-2150.738,0.00015365,2]
[421517197,1777807839000,-2230.315306,0.00015913,2]
[421517194,1777807839000,-347.958754,0.00015068,2]
[421517201,1777807839000,-500.0,0.00016337,2]
[421517199,1777807839000,-474.363,0.000163,2]
[421517202,1777807839000,-545.42524493,0.00016337,2]
[421517203,1777807839000,-200.0,0.0001638,2]
[421517200,1777807839000,-500.0,0.00016337,2]
[421517205,1777807839000,-5000.0,0.00016437,2]
[421517215,1777807839000,-426.00652116,0.00016438,2]
[421517206,1777807839000,-500.0,0.00016437,2]
[421517186,1777807839000,-1000.0,0.00013699,2]
[421517204,1777807839000,-500.0,0.00016436,2]
[421517184,1777807839000,-300.0,0.00013546,2]
[421517169,1777807839000,-1587.7738399,0.00013386,2]
[421517188,1777807839000,-1000.0,0.00013699,2]
[421517167,1777807839000,-420.0,0.00013357,2]
[421517166,1777807839000,-1050.86032587,0.0001267,2]
[421517168,1777807839000,-587.0,0.00013386,2]
[421517171,1777807839000,-300.0,0.00013546,2]
[421517176,1777807839000,-300.0,0.00013546,2]
[421517172,1777807839000,-300.0,0.00013546,2]
[421517175,1777807839000,-300.0,0.00013546,2]
[421517170,1777807839000,-3803.3103273,0.00013415,2]
[421517174,1777807839000,-300.0,0.00013546,2]
[421517173,1777807839000,-300.0,0.00013546,2]
[421517178,1777807839000,-300.0,0.00013546,2]
[421517177,1777807839000,-300.0,0.00013546,2]
[421517180,1777807839000,-300.0,0.00013546,2]
[421517179,1777807839000,-300.0,0.00013546,2]
[421517190,1777807839000,-15000.0,0.00014211,2]
[421517182,1777807839000,-300.0,0.00013546,2]
[421517181,1777807839000,-300.0,0.00013546,2]
[421517185,1777807839000,-300.0,0.00013546,2]
[421517183,1777807839000,-300.0,0.00013546,2]
[421517187,1777807839000,-1283.283127,0.00013699,2]
[421517218,1777807839000,-500.0,0.00016438,2]
[421517191,1777807839000,-297.41053714,0.00014481,2]
[421517207,1777807839000,-159.37641191,0.00016437,2]
[421517239,1777807839000,-500.0,0.00016438,2]
[421517235,1777807839000,-500.0,0.00016438,2]
[421517241,1777807839000,-500.0,0.00016438,2]
[421517233,1777807839000,-709.95,0.00016438,2]
[421517237,1777807839000,-500.0,0.00016438,2]
[421517240,1777807839000,-500.0,0.00016438,2]
[421517243,1777807839000,-500.0,0.00016438,2]
[421517246,1777807839000,-500.0,0.00016438,2]
[421517244,1777807839000,-937.46,0.00016438,2]
[421517251,1777807839000,-500.0,0.00016438,2]
[421517254,1777807839000,-877.87789187,0.00016438,2]
[421517248,1777807839000,-500.0,0.00016438,2]
[421517245,1777807839000,-500.0,0.00016438,2]
[421517247,1777807839000,-500.0,0.00016438,2]
[421517249,1777807839000,-500.0,0.00016438,2]
[421517252,1777807839000,-500.0,0.00016438,2]
[421517253,1777807839000,-500.0,0.00016438,2]
[421517250,1777807839000,-500.0,0.00016438,2]
[421517217,1777807839000,-500.0,0.00016438,2]
[421517234,1777807839000,-634.53,0.00016438,2]
[421517236,1777807839000,-500.0,0.00016438,2]
[421517242,1777807839000,-500.0,0.00016438,2]
[421517230,1777807839000,-500.0,0.00016438,2]
[421517209,1777807839000,-1145.1369,0.00016438,2]
[421517211,1777807839000,-2606.7811,0.00016438,2]
[421517208,1777807839000,-503.55062517,0.00016438,2]
[421517210,1777807839000,-156.152327,0.00016438,2]
[421517213,1777807839000,-3179.3834,0.00016438,2]
[421517212,1777807839000,-2606.7811,0.00016438,2]
[421517214,1777807839000,-500.0,0.00016438,2]
[421517219,1777807839000,-13711.720189,0.00016438,2]
[421517220,1777807839000,-182.69761814,0.00016438,2]
[421517232,1777807839000,-517.13,0.00016438,2]
[421517222,1777807839000,-279.59692867,0.00016438,2]
[421517223,1777807839000,-8070.72220433,0.00016438,2]
[421517221,1777807839000,-168.204267,0.00016438,2]
[421517225,1777807839000,-583.181169,0.00016438,2]
[421517227,1777807839000,-500.0,0.00016438,2]
[421517228,1777807839000,-500.0,0.00016438,2]
[421517226,1777807839000,-500.0,0.00016438,2]
[421517229,1777807839000,-1535.86,0.00016438,2]
[421517231,1777807839000,-500.0,0.00016438,2]
[421517238,1777807839000,-758.8,0.00016438,2]
[421517224,1777807839000,-489.248925,0.00016438,2]
[421517316,1777807843000,-0.72666484,0.00016438,2]
[421517314,1777807843000,-160.0,0.00015098,2]
[421517315,1777807843000,-317.83210813,0.00016438,2]
[421517318,1777807843000,-543.24,0.00016438,2]
[421517322,1777807843000,-500.0,0.00016438,2]
[421517319,1777807843000,-500.0,0.00016438,2]
[421517320,1777807843000,-729.59,0.00016438,2]
[421517321,1777807843000,-500.0,0.00016438,2]
[421517323,1777807843000,-756.83,0.00016438,2]
[421517317,1777807843000,-991.38333516,0.00016438,2]
[421517343,1777807844000,-500.0,0.00016438,2]
[421517344,1777807844000,-500.0,0.00016438,2]
[421517345,1777807844000,-500.0,0.00016438,2]
[421517346,1777807844000,-1619.91,0.00016438,2]
[421517347,1777807844000,-500.0,0.00016438,2]
[421517349,1777807844000,-1151.56,0.00016438,2]
[421517348,1777807844000,-500.0,0.00016438,2]
[421517350,1777807844000,-500.0,0.00016438,2]
[421517354,1777807844000,-500.0,0.00016438,2]
[421517352,1777807844000,-928.89,0.00016438,2]
[421517353,1777807844000,-500.0,0.00016438,2]
[421517355,1777807844000,-665.71,0.00016438,2]
[421517357,1777807844000,-500.0,0.00016438,2]
[421517356,1777807844000,-500.0,0.00016438,2]
[421517359,1777807844000,-500.0,0.00016438,2]
[421517351,1777807844000,-500.0,0.00016438,2]
[421517342,1777807844000,-500.0,0.00016438,2]
[421517336,1777807844000,-500.0,0.00016438,2]
[421517339,1777807844000,-500.0,0.00016438,2]
[421517360,1777807844000,-533.231883,0.00016438,2]
[421517324,1777807844000,-291.95759954,0.00016438,2]
[421517325,1777807844000,-222.72822353,0.00016438,2]
[421517327,1777807844000,-500.0,0.00016438,2]
[421517326,1777807844000,-500.0,0.00016438,2]
[421517328,1777807844000,-500.0,0.00016438,2]
[421517329,1777807844000,-500.0,0.00016438,2]
[421517341,1777807844000,-1533.36,0.00016438,2]
[421517330,1777807844000,-500.0,0.00016438,2]
[421517331,1777807844000,-500.0,0.00016438,2]
[421517333,1777807844000,-500.0,0.00016438,2]
[421517334,1777807844000,-965.17,0.00016438,2]
[421517338,1777807844000,-889.65,0.00016438,2]
[421517335,1777807844000,-500.0,0.00016438,2]
[421517337,1777807844000,-552.66,0.00016438,2]
[421517340,1777807844000,-500.0,0.00016438,2]
[421517332,1777807844000,-513.21,0.00016438,2]
[421517361,1777807844000,-500.0,0.00016438,2]
[421517376,1777807844000,-500.0,0.00016438,2]
[421517362,1777807844000,-500.0,0.00016438,2]
[421517383,1777807844000,-500.0,0.00016438,2]
[421517384,1777807844000,-501.19311671,0.00016438,2]
[421517385,1777807844000,-500.0,0.00016438,2]
[421517389,1777807844000,-500.0,0.00016438,2]
[421517386,1777807844000,-500.0,0.00016438,2]
[421517396,1777807844000,-500.0,0.00016438,2]
[421517393,1777807844000,-1039.26,0.00016438,2]
[421517382,1777807844000,-500.0,0.00016438,2]
[421517390,1777807844000,-521.31,0.00016438,2]
[421517388,1777807844000,-500.0,0.00016438,2]
[421517358,1777807844000,-500.0,0.00016438,2]
[421517394,1777807844000,-500.0,0.00016438,2]
[421517395,1777807844000,-500.0,0.00016438,2]
[421517392,1777807844000,-500.0,0.00016438,2]
[421517397,1777807844000,-1187.17,0.00016438,2]
[421517398,1777807844000,-59.018765,0.00016438,2]
[421517391,1777807844000,-500.0,0.00016438,2]
[421517379,1777807844000,-500.0,0.00016438,2]
[421517387,1777807844000,-2443.1,0.00016438,2]
[421517380,1777807844000,-500.0,0.00016438,2]
[421517381,1777807844000,-682.82,0.00016438,2]
[421517367,1777807844000,-500.0,0.00016438,2]
[421517365,1777807844000,-500.0,0.00016438,2]
[421517368,1777807844000,-500.0,0.00016438,2]
[421517363,1777807844000,-558.45,0.00016438,2]
[421517366,1777807844000,-500.0,0.00016438,2]
[421517370,1777807844000,-500.0,0.00016438,2]
[421517369,1777807844000,-500.0,0.00016438,2]
[421517364,1777807844000,-500.0,0.00016438,2]
[421517373,1777807844000,-500.0,0.00016438,2]
[421517372,1777807844000,-500.0,0.00016438,2]
[421517374,1777807844000,-500.0,0.00016438,2]
[421517375,1777807844000,-500.0,0.00016438,2]
[421517377,1777807844000,-500.0,0.00016438,2]
[421517371,1777807844000,-500.0,0.00016438,2]
[421517378,1777807844000,-500.0,0.00016438,2]
[421517410,1777807847000,-500.0,0.00016438,2]
[421517415,1777807847000,-648.86,0.00016438,2]
[421517417,1777807847000,-566.5,0.00016438,2]
[421517418,1777807847000,-500.0,0.00016438,2]
[421517420,1777807847000,-878.04,0.00016438,2]
[421517421,1777807847000,-895.58,0.00016438,2]
[421517422,1777807847000,-500.0,0.00016438,2]
[421517423,1777807847000,-622.59,0.00016438,2]
[421517411,1777807847000,-500.0,0.00016438,2]
[421517429,1777807847000,-789.28,0.00016438,2]
[421517419,1777807847000,-500.0,0.00016438,2]
[421517414,1777807847000,-514.78997532,0.00016438,2]
[421517404,1777807847000,-496.45597407,0.00016438,2]
[421517416,1777807847000,-500.0,0.00016438,2]
[421517413,1777807847000,-500.0,0.00016438,2]
[421517409,1777807847000,-1965.95,0.00016438,2]
[421517412,1777807847000,-500.0,0.00016438,2]
[421517407,1777807847000,-500.0,0.00016438,2]
[421517406,1777807847000,-500.0,0.00016438,2]
[421517405,1777807847000,-500.0,0.00016438,2]
[421517403,1777807847000,-3.54402593,0.00016438,2]
[421517402,1777807847000,-500.0,0.00016438,2]
[421517401,1777807847000,-500.0,0.00016438,2]
[421517400,1777807847000,-695.751235,0.00016438,2]
[421517427,1777807847000,-594.89,0.00016438,2]
[421517408,1777807847000,-500.0,0.00016438,2]
[421517428,1777807847000,-500.0,0.00016438,2]
[421517453,1777807847000,-500.0,0.00016438,2]
[421517425,1777807847000,-500.0,0.00016438,2]
[421517454,1777807847000,-33.69228078,0.00016438,2]
[421517451,1777807847000,-500.0,0.00016438,2]
[421517426,1777807847000,-500.0,0.00016438,2]
[421517452,1777807847000,-517.96445126,0.00016438,2]
[421517450,1777807847000,-500.0,0.00016438,2]
[421517449,1777807847000,-500.0,0.00016438,2]
[421517448,1777807847000,-3230.31,0.00016438,2]
[421517447,1777807847000,-362.66140821,0.00016438,2]
[421517445,1777807847000,-500.0,0.00016438,2]
[421517444,1777807847000,-619.11,0.00016438,2]
[421517443,1777807847000,-500.0,0.00016438,2]
[421517441,1777807847000,-643.03746889,0.00016438,2]
[421517446,1777807847000,-500.0,0.00016438,2]
[421517442,1777807847000,-500.0,0.00016438,2]
[421517439,1777807847000,-500.0,0.00016438,2]
[421517438,1777807847000,-500.0,0.00016438,2]
[421517436,1777807847000,-500.0,0.00016438,2]
[421517437,1777807847000,-500.0,0.00016438,2]
[421517435,1777807847000,-500.0,0.00016438,2]
[421517424,1777807847000,-500.0,0.00016438,2]
[421517433,1777807847000,-500.0,0.00016438,2]
[421517434,1777807847000,-359.19124002,0.00016438,2]
[421517432,1777807847000,-500.0,0.00016438,2]
[421517430,1777807847000,-517.16253347,0.00016438,2]
[421517431,1777807847000,-500.0,0.00016438,2]
[421517440,1777807847000,-2537.55,0.00016438,2]
[421517455,1777807858000,5392.66483497,7.6e-05,2]
[421517459,1777808547000,187.345818,6.465e-05,2]
[421517461,1777808636000,5000.0,8.01e-05,2]
[421517469,1777809021000,5000.0,8.01e-05,2]
[421517470,1777809029000,4592.47882625,8.01e-05,2]
[421517593,1777809038000,-1650.0,0.00013343,2]
[421517583,1777809038000,-534.0,8.081e-05,2]
[421517584,1777809038000,-254.75858555,8.081e-05,2]
[421517585,1777809038000,-187.345818,8.081e-05,2]
[421517587,1777809038000,-300.61513095,0.00010081,2]
[421517591,1777809038000,-300.0,0.00012567,2]
[421517586,1777809038000,-187.345818,9.697e-05,2]
[421517594,1777809038000,-1777.85504803,0.000135,2]
[421517592,1777809038000,-187.345818,0.0001293,2]
[421517590,1777809038000,-346.47167635,0.00012081,2]
[421517588,1777809038000,-81.3146475,0.00011314,2]
[421517596,1777809038000,-300.0,0.00013695,2]
[421517595,1777809038000,-160.0,0.000135,2]
[421517598,1777809038000,-300.0,0.00013696,2]
[421517599,1777809038000,-300.0,0.00013696,2]
[421517600,1777809038000,-209.0,0.00013696,2]
[421517601,1777809038000,-300.0,0.00013696,2]
[421517597,1777809038000,-1200.0,0.00013695,2]
[421517589,1777809038000,-106.0311705,0.00011314,2]
[421517638,1777809039000,-500.0,0.00015581,2]
[421517637,1777809039000,-500.0,0.00015581,2]
[421517636,1777809039000,-500.0,0.00015581,2]
[421517632,1777809039000,-500.0,0.00015581,2]
[421517643,1777809039000,-500.0,0.00015581,2]
[421517634,1777809039000,-500.0,0.00015581,2]
[421517644,1777809039000,-500.0,0.00015581,2]
[421517642,1777809039000,-500.0,0.00015581,2]
[421517633,1777809039000,-631.63361152,0.00015581,2]
[421517628,1777809039000,-720.0,0.00015518,2]
[421517635,1777809039000,-500.0,0.00015581,2]
[421517641,1777809039000,-500.0,0.00015581,2]
[421517656,1777809039000,-500.0,0.00015581,2]
[421517639,1777809039000,-500.0,0.00015581,2]
[421517646,1777809039000,-500.0,0.00015581,2]
[421517645,1777809039000,-500.0,0.00015581,2]
[421517657,1777809039000,-500.0,0.00015581,2]
[421517647,1777809039000,-500.0,0.00015581,2]
[421517650,1777809039000,-500.0,0.00015581,2]
[421517653,1777809039000,-500.0,0.00015581,2]
[421517648,1777809039000,-500.0,0.00015581,2]
[421517649,1777809039000,-500.0,0.00015581,2]
[421517651,1777809039000,-500.0,0.00015581,2]
[421517629,1777809039000,-442.0,0.00015571,2]
[421517640,1777809039000,-500.0,0.00015581,2]
[421517627,1777809039000,-160.0,0.00015341,2]
[421517603,1777809039000,-1000.0,0.00013699,2]
[421517624,1777809039000,-1615.60976197,0.00015,60]
[421517654,1777809039000,-500.0,0.00015581,2]
[421517604,1777809039000,-1000.0,0.00013699,2]
[421517602,1777809039000,-1069.272206,0.00013699,2]
[421517606,1777809039000,-300.0,0.00013832,2]
[421517607,1777809039000,-300.0,0.00013832,2]
[421517605,1777809039000,-300.0,0.00013832,2]